bitfinex-derivatives/quotes_ETHF0:USTF0_20241102
["timestamp","ask_amount","ask_price","bid_price","bid_amount"]
[1730545818262,5.10938233,2504.1,2504.0,1.34680078]
[1730545819263,5.10938233,2504.1,2504.0,0.74115]
[1730545819665,6.48168233,2504.2,2504.0,1.06702705]
[1730545819864,5.57078233,2504.2,2504.1,0.27963]
[1730545820057,3.669846,2504.2,2504.1,4.27323]
[1730545820357,3.14305185,2504.2,2504.1,4.87855579]
[1730545822459,3.14305185,2504.3,2504.2,0.27962]
[1730545822659,5.38898233,2504.4,2504.3,0.70051]
[1730545823568,5.10938233,2504.4,2504.3,0.70051]
[1730545826765,5.10938233,2504.4,2503.9,1.59405]
[1730545826958,5.10938233,2504.4,2504.1,0.27962]
[1730545826959,3.14058094,2504.2,2504.1,0.27962]
[1730545827560,4.58011727,2504.2,2504.1,0.27962]
[1730545827766,1.71915633,2504.2,2504.1,0.27962]
[1730545828564,5.38900233,2504.2,2504.1,0.27962]
[1730545829562,5.10938233,2504.2,2504.1,0.27962]
[1730545835671,4.57983676,2504.2,2504.1,0.27962]
[1730545836164,1.71915633,2504.2,2504.1,0.27962]
[1730545836370,4.85944027,2504.2,2504.1,0.27962]
[1730545836566,1.71915633,2504.2,2504.1,0.27962]
[1730545836770,1.43953633,2504.2,2504.1,0.27962]
[1730545836967,9.10298233,2504.2,2503.8,3.2078]
[1730545837171,9.10298233,2504.2,2503.4,0.82]
[1730545837172,0.27966,2503.9,2503.7,0.27967]
[1730545837469,2.33613633,2503.8,2503.7,0.27967]
[1730545838780,2.61580633,2503.8,2503.7,0.27967]
[1730545839274,5.47671718,2503.8,2503.7,0.27967]
[1730545840575,0.27968,2503.7,2503.2,2.84397495]
[1730545840773,1.43953633,2503.4,2503.3,0.60459848]
[1730545841071,1.43953633,2503.4,2503.3,0.88431848]
[1730545842473,1.43953633,2503.4,2503.3,0.27972]
[1730545842665,1.43953633,2503.4,2503.3,0.88432389]
[1730545846077,1.43953633,2503.4,2503.3,0.88430861]
[1730545846271,1.89443633,2503.4,2503.3,0.88430861]
[1730545846681,1.89443633,2503.4,2503.3,0.88429768]
[1730545846876,1.89443633,2503.4,2503.3,0.88430564]
[1730545847077,1.89443633,2503.4,2503.3,0.27972]
[1730545850778,0.4549,2503.4,2503.3,0.27972]
[1730545850978,0.4254,2503.5,2503.4,0.27971]
[1730545856395,1.86373633,2503.6,2503.2,0.4458]
[1730545856396,1.86373633,2503.6,2503.5,0.2797]
[1730545856790,5.00131718,2503.8,2503.7,0.27968]
[1730545856992,1.86073633,2503.8,2503.7,0.27968]
[1730545861004,5.00131718,2503.8,2503.7,0.27968]
[1730545861594,3.42023085,2504.0,2503.9,0.27966]
[1730545861800,3.86853085,2504.0,2503.9,0.27966]
[1730545861999,3.86853085,2504.0,2503.8,0.27966]
[1730545862000,0.27966,2503.9,2503.8,0.27966]
[1730545862300,1.71919633,2503.9,2503.8,0.27966]
[1730545862701,1.43953633,2503.9,2503.8,0.27966]
[1730545864203,1.43953633,2503.9,2503.6,0.4296]
[1730545864406,1.43953633,2503.7,2503.6,0.70929]
[1730545864603,1.71921633,2503.7,2503.6,0.27969]
[1730545864804,1.43953633,2503.7,2503.6,0.27969]
[1730545865303,2.74023633,2503.7,2503.6,0.27969]
[1730545865707,3.01991633,2503.7,2503.6,0.27969]
[1730545867109,3.01991633,2503.7,2503.5,0.73789]
[1730545867402,3.01991633,2503.7,2503.6,0.27969]
[1730545867907,3.01991633,2503.7,2503.5,0.4582]
[1730545868203,3.01991633,2503.7,2503.5,0.27969]
[1730545868415,2.74023633,2503.7,2503.4,3.2078]
[1730545868597,2.74023633,2503.7,2503.6,0.27969]
[1730545868598,3.01992633,2503.7,2503.6,0.27969]
[1730545870398,6.16050718,2503.7,2503.6,0.27969]
[1730545871797,6.16050718,2503.7,2503.5,0.27969]
[1730545872002,1.43953633,2503.6,2503.5,0.27969]
[1730545875710,2.74023633,2503.7,2503.6,0.27969]
[1730545875905,5.88081718,2503.7,2503.6,0.27969]
[1730545878713,6.16049718,2503.7,2503.6,0.27969]
[1730545880106,6.16049718,2503.7,2503.3,1.14061]
[1730545880305,1.43953633,2503.5,2503.4,4.09200829]
[1730545880902,1.43953633,2503.5,2503.4,0.60449829]
[1730545881106,1.43953633,2503.5,2503.3,0.27972]
[1730545881107,0.27971,2503.4,2503.3,0.27972]
[1730545881311,5.29116272,2503.4,2503.3,0.88445267]
[1730545881613,5.29116272,2503.4,2503.3,0.27972]
[1730545881614,5.81719233,2503.4,2503.3,0.27972]
[1730545881917,5.53748233,2503.4,2503.3,0.27972]
[1730545882114,5.53748233,2503.4,2503.3,0.88464062]
[1730545884612,5.53748233,2503.4,2503.3,0.27972]
[1730545884812,5.53748233,2503.4,2503.3,0.8846215]
[1730545885214,5.53748233,2503.4,2503.3,0.27972]
[1730545885409,1.86763633,2503.4,2503.3,0.88458738]
[1730545886709,1.86763633,2503.4,2503.3,0.27972]
[1730545888817,1.86763633,2503.4,2503.3,0.88453029]
[1730545889412,5.01147481,2503.4,2503.3,0.88453029]
[1730545890315,1.86763633,2503.4,2503.3,0.27972]
[1730545890909,5.01139986,2503.4,2503.3,0.27972]
[1730545891213,1.86763633,2503.4,2503.3,0.27972]
[1730545891422,5.01132915,2503.4,2503.3,0.27972]
[1730545892319,5.01122859,2503.4,2503.3,0.27972]
[1730545894620,4.58312859,2503.4,2503.3,0.88458072]
[1730545895015,1.43953633,2503.4,2503.3,0.88458072]
[1730545895218,4.58312859,2503.4,2503.3,0.88458072]
[1730545897717,4.58312859,2503.4,2503.3,0.8845537]
[1730545897927,4.58312859,2503.4,2503.3,1.48938802]
[1730545899630,1.43953633,2503.4,2503.3,1.48938802]
[1730545899926,4.58312859,2503.4,2503.3,1.48938802]
[1730545901623,4.58312859,2503.4,2503.3,1.48920047]
[1730545901624,1.43953633,2503.4,2503.3,1.48920047]
[1730545902219,1.43953633,2503.4,2503.3,0.88436677]
[1730545903323,4.58312859,2503.4,2503.3,0.88436677]
[1730545903723,1.43953633,2503.4,2503.3,0.88436677]
[1730545904125,4.58312859,2503.5,2503.3,4.59904677]
[1730545904333,4.86282859,2503.5,2503.4,0.27971]
[1730545905234,1.71923633,2503.5,2503.4,0.27971]
[1730545908735,1.43953633,2503.5,2503.4,0.27971]
[1730545909235,5.10938233,2503.5,2503.4,0.27971]
[1730545909537,1.43953633,2503.5,2503.4,0.27971]
[1730545910330,5.10938233,2503.5,2503.4,0.27971]
[1730545912437,1.43953633,2503.5,2503.4,0.88461404]
[1730545912837,1.43953633,2503.5,2503.4,0.27971]
[1730545913038,1.43953633,2503.5,2503.4,0.88464293]
[1730545913237,1.43953633,2503.5,2503.4,0.27971]
[1730545913446,1.43953633,2503.5,2503.4,0.88465024]
[1730545913636,5.10938233,2503.5,2503.4,0.88465024]
[1730545913934,5.10938233,2503.5,2503.4,0.88467156]
[1730545913935,1.43953633,2503.5,2503.4,0.88467156]
[1730545914244,5.10938233,2503.5,2503.4,0.88467156]
[1730545915338,5.10938233,2503.5,2503.4,0.27971]
[1730545915542,5.10938233,2503.5,2503.4,0.88469979]
[1730545920349,5.10938233,2503.5,2503.4,0.27971]
[1730545920549,5.10938233,2503.5,2503.4,0.88478815]
[1730545921048,1.43953633,2503.5,2503.4,0.88478815]
[1730545923050,4.5847795,2503.5,2503.4,0.88478815]
[1730545923252,5.10938233,2503.5,2503.4,0.27971]
[1730545923449,5.10938233,2503.5,2503.4,0.88489245]
[1730545926554,5.10938233,2503.5,2503.4,0.27971]
[1730545926752,5.10938233,2503.5,2503.4,0.88509051]
[1730545927560,5.10938233,2503.5,2503.4,1.8536212]
[1730545927860,3.669846,2503.6,2503.5,0.2797]
[1730545928059,2.29703633,2503.7,2503.5,1.9928112]
[1730545928060,5.96688233,2503.7,2503.5,1.9928112]
[1730545928261,5.96688233,2503.7,2503.6,0.88507051]
[1730545928456,5.96688233,2503.7,2503.6,1.33787051]
[1730545930256,5.96688233,2503.7,2503.6,1.33758675]
[1730545931354,5.96688233,2503.7,2503.6,0.73249]
[1730545932963,5.96688233,2503.7,2503.6,1.33748641]
[1730545933365,2.29703633,2503.7,2503.6,1.33748641]
[1730545935465,2.29703633,2503.7,2503.6,1.33749665]
[1730545938166,2.29703633,2503.7,2503.6,1.3374277]
[1730545940362,2.29703633,2503.7,2503.6,1.33732295]
[1730545943669,5.44109725,2503.7,2503.6,1.33732295]
[1730545943873,5.44109725,2503.7,2503.6,1.33724687]
[1730545944173,2.29703633,2503.7,2503.6,1.33724687]
[1730545944873,2.57671633,2503.7,2503.6,0.88444687]
[1730545945066,6.24656233,2503.7,2503.6,0.27969]
[1730545945575,5.96688233,2503.7,2503.6,0.27969]
[1730545945961,2.57671633,2503.7,2503.6,0.27969]
[1730545946169,6.24656233,2503.7,2503.6,0.27969]
[1730545946362,5.96688233,2503.7,2503.6,0.27969]
[1730545948670,6.24656233,2503.7,2503.6,0.27969]
[1730545949272,5.96688233,2503.7,2503.6,0.27969]
[1730545951479,5.96688233,2503.7,2503.6,0.8841943]
[1730545952075,2.29703633,2503.7,2503.6,0.27969]
[1730545952274,5.44120498,2503.7,2503.6,0.88416141]
[1730545953476,2.29703633,2503.7,2503.6,0.88416141]
[1730545956580,5.44133905,2503.7,2503.6,0.88416141]
[1730545956775,2.29703633,2503.7,2503.6,1.30246141]
[1730545958778,5.96688233,2503.7,2503.6,1.30246141]
[1730545959576,5.96688233,2503.7,2503.6,0.69799]
[1730545959773,5.96688233,2503.7,2503.6,1.30234677]
[1730545963387,5.96688233,2503.7,2503.6,1.30235336]
[1730545967082,5.96688233,2503.7,2503.6,0.69799]
[1730545967378,5.96688233,2503.7,2503.6,1.30241433]
[1730545970784,5.96688233,2503.7,2503.6,1.30257763]
[1730545971286,5.96688233,2503.7,2503.6,1.30262468]
[1730545972294,5.96688233,2503.7,2503.6,1.30262979]
[1730545973180,5.96688233,2503.7,2503.6,2.27030079]
[1730545973488,2.29703633,2503.7,2503.6,0.69799]
[1730545973892,2.29703633,2503.7,2503.6,2.27048632]
[1730545974092,2.29703633,2503.7,2503.6,2.27049075]
[1730545974591,2.29703633,2503.7,2503.6,2.27047451]
[1730545974791,2.29703633,2503.7,2503.6,0.69799]
[1730545974988,2.29703633,2503.7,2503.6,2.2704639]
[1730545975490,2.29703633,2503.7,2503.6,1.30278765]
[1730545975886,5.96908796,2503.7,2503.6,2.27047628]
[1730545976085,2.22313796,2503.7,2503.6,6.26487628]
[1730545976286,4.18272715,2504.1,2503.7,0.69921]
[1730545976488,4.70556804,2504.2,2504.0,3.2078]
[1730545976489,4.18272715,2504.2,2504.0,3.2078]
[1730545976792,11.37351331,2504.3,2504.2,0.27962]
[1730545976793,1.43953633,2504.3,2504.2,0.27962]
[1730545976990,1.43953633,2504.3,2504.2,1.85142249]
[1730545977293,1.43953633,2504.3,2504.2,0.88415942]
[1730545978695,1.43953633,2504.3,2504.2,0.27962]
[1730545978892,1.43953633,2504.3,2504.2,0.8830486]
[1730545979988,1.43953633,2504.5,2504.4,0.2796]
[1730545980691,0.4388,2504.6,2504.5,0.27959]
[1730545981193,1.43953633,2504.8,2504.7,0.27957]
[1730545981396,1.86023633,2504.8,2504.7,0.27957]
[1730545994908,0.4207,2504.8,2504.7,0.27957]
[1730545995919,0.8426,2504.8,2504.7,0.27957]
[1730546002104,2.28213633,2504.8,2504.7,0.27957]
[1730546002517,2.56169633,2504.8,2504.7,0.27957]
[1730546002907,2.28213633,2504.8,2504.6,3.2078]
[1730546003114,1.71910633,2504.7,2504.6,2.09797]
[1730546003309,1.71910633,2504.7,2504.6,1.8184]
[1730546003913,1.71910633,2504.7,2504.6,1.1237]
[1730546004616,1.71910633,2504.7,2504.6,1.40328]
[1730546005218,1.71910633,2504.7,2504.6,0.27958]
[1730546006315,1.43953633,2504.7,2504.6,0.27958]
[1730546006506,2.56169633,2504.8,2504.7,0.27957]
[1730546009012,2.28213633,2504.8,2504.7,0.27957]
[1730546011015,2.56169633,2504.8,2504.7,0.27957]
[1730546011412,2.28213633,2504.8,2504.7,0.27957]
[1730546011612,2.56169633,2504.8,2504.7,0.27957]
[1730546011916,2.28213633,2504.8,2504.7,0.27957]
[1730546012511,1.71909633,2504.8,2504.7,0.27957]
[1730546012712,2.59829633,2504.8,2504.7,0.27957]
[1730546014517,2.31873633,2504.8,2504.7,0.27957]
[1730546014723,2.59829633,2504.8,2504.7,0.27957]
[1730546015121,2.59829633,2504.8,2504.2,0.8852]
[1730546015122,5.52653633,2504.8,2504.2,4.488]
[1730546015325,1.43953633,2504.6,2504.2,4.488]
[1730546015625,1.43953633,2504.6,2504.5,0.27959]
[1730546021333,4.56528312,2504.6,2504.5,0.27959]
[1730546023032,4.58167684,2504.6,2504.5,0.27959]
[1730546023526,4.58194239,2504.6,2504.5,0.88326441]
[1730546023918,1.43953633,2504.6,2504.5,0.88326441]
[1730546024330,1.43953633,2504.6,2504.5,0.88333521]
[1730546027531,1.43953633,2504.6,2504.5,0.27959]
[1730546027730,1.43953633,2504.6,2504.5,0.88335528]
[1730546029332,1.43953633,2504.6,2504.5,0.88333125]
[1730546029633,1.43953633,2504.6,2504.5,0.88332846]
[1730546030730,1.43953633,2504.6,2504.5,0.88330012]
[1730546031237,1.86383633,2504.6,2504.5,0.88330012]
[1730546033634,5.00630052,2504.6,2504.5,0.88330012]
[1730546034042,1.86383633,2504.6,2504.5,0.88330012]
[1730546034937,2.14341633,2504.6,2504.5,0.88330012]
[1730546035147,1.86383633,2504.6,2504.5,0.88330012]
[1730546036349,5.00627473,2504.6,2504.5,0.88330012]
[1730546036544,1.86383633,2504.6,2504.5,0.88330012]
[1730546036947,5.00625139,2504.6,2504.5,0.88330012]
[1730546037139,1.86383633,2504.6,2504.5,0.88330012]
[1730546038441,1.86383633,2504.6,2504.5,0.88324168]
[1730546038636,1.86383633,2504.6,2504.5,0.88324462]
[1730546042650,2.14341633,2504.6,2504.5,0.88324462]
[1730546043152,1.86383633,2504.6,2504.5,0.88324462]
[1730546043357,2.14341633,2504.6,2504.5,0.88324462]
[1730546043547,0.27961,2504.4,2504.3,0.2796]
[1730546043752,8.59400835,2504.4,2504.3,0.2796]
[1730546043952,8.31439835,2504.4,2504.3,0.2796]
[1730546044245,8.73919835,2504.4,2504.3,0.2796]
[1730546045451,5.53139835,2504.4,2504.3,0.2796]
[1730546050759,5.81099835,2504.4,2504.3,0.2796]
[1730546052656,5.53139835,2504.4,2504.3,0.2796]
[1730546053653,4.09186202,2504.4,2504.3,0.2796]
[1730546053859,3.56681991,2504.4,2504.3,0.2796]
[1730546054365,0.4248,2504.4,2504.3,0.2796]
[1730546060271,4.09186202,2504.4,2504.3,0.2796]
[1730546062068,0.4248,2504.4,2504.3,0.2796]
[1730546062275,4.09186202,2504.4,2504.3,0.2796]
[1730546062970,0.4248,2504.4,2504.3,0.88325604]
[1730546063168,0.4248,2504.4,2504.3,0.2796]
[1730546063169,4.09186202,2504.4,2504.3,0.2796]
[1730546069277,4.09186202,2504.4,2504.1,0.8611]
[1730546069569,5.10659835,2504.3,2504.2,0.27961]
[1730546069768,5.38620835,2504.3,2504.2,0.27961]
[1730546069971,1.71914633,2504.3,2504.2,0.27961]
[1730546070172,5.38620835,2504.3,2504.2,0.27961]
[1730546070972,5.10659835,2504.3,2504.2,0.27961]
[1730546071576,1.43953633,2504.3,2504.2,0.27961]
[1730546072277,5.10659835,2504.3,2504.2,0.27961]
[1730546072972,5.38620835,2504.3,2504.2,0.27961]
[1730546076978,8.73919835,2504.4,2504.2,0.27961]
[1730546077278,0.27961,2504.3,2504.2,0.27961]
[1730546077477,9.01880835,2504.4,2504.3,0.27961]
[1730546078083,5.35174633,2504.4,2504.3,0.27961]
[1730546079485,2.14394633,2504.4,2504.3,0.27961]
[1730546079886,5.35174633,2504.4,2504.3,0.27961]
[1730546080183,2.14394633,2504.4,2504.3,0.27961]
[1730546080780,5.35174633,2504.4,2504.3,0.27961]
[1730546081287,9.01901356,2504.4,2504.3,0.27961]
[1730546081478,5.81121356,2504.4,2504.3,0.27961]
[1730546081982,9.01901356,2504.4,2504.3,0.27961]
[1730546082177,5.35174633,2504.4,2504.3,0.27961]
[1730546082379,2.14394633,2504.4,2504.3,0.27961]
[1730546082578,5.35174633,2504.4,2504.3,0.27961]
[1730546083383,9.53447348,2504.4,2504.3,0.27961]
[1730546084082,6.32667348,2504.4,2504.3,0.27961]
[1730546084686,9.53447348,2504.4,2504.3,0.27961]
[1730546085087,6.32667348,2504.4,2504.3,0.27961]
[1730546085280,9.53447348,2504.4,2504.3,0.27961]
[1730546086187,6.32667348,2504.4,2504.3,0.27961]
[1730546086378,9.53447348,2504.4,2504.3,0.27961]
[1730546087188,6.32667348,2504.4,2504.3,0.27961]
[1730546087393,9.53447348,2504.4,2504.3,0.27961]
[1730546088585,9.53447348,2504.4,2504.3,0.88394348]
[1730546089089,6.32667348,2504.4,2504.3,0.88394348]
[1730546093588,6.32667348,2504.4,2504.3,0.27961]
[1730546093791,6.32667348,2504.4,2504.3,0.88411706]
[1730546094088,6.32667348,2504.4,2504.3,0.60450706]
[1730546094089,2.14394633,2504.4,2504.3,0.60450706]
[1730546094289,2.14394633,2504.4,2504.3,0.88411706]
[1730546094290,6.33852844,2504.4,2504.3,0.88411706]
[1730546094488,6.33852844,2504.4,2504.0,0.27964]
[1730546094489,5.85713633,2504.4,2504.0,0.27964]
[1730546094690,4.92696633,2504.1,2504.0,0.27964]
[1730546094891,9.1219007,2504.1,2504.0,0.27964]
[1730546095186,9.1219007,2504.1,2503.6,0.4546]
[1730546095187,10.1585707,2504.1,2503.6,0.4546]
[1730546095388,3.14547317,2503.8,2503.7,1.245241]
[1730546097292,3.14547317,2503.8,2503.7,0.27968]
[1730546097486,3.14547317,2503.8,2503.7,1.2446388]
[1730546097690,3.14547317,2503.8,2503.7,1.24462625]
[1730546099396,3.14547317,2503.8,2503.7,0.27968]
[1730546100196,3.14547317,2503.9,2503.7,0.96460821]
[1730546100402,3.14547317,2503.9,2503.8,0.27967]
[1730546100693,5.3899567,2504.0,2503.9,0.27966]
[1730546101198,5.38656607,2504.0,2503.9,0.27966]
[1730546104894,5.10691607,2504.0,2503.9,0.27966]
[1730546105499,8.31471607,2504.0,2503.9,0.27966]
[1730546107201,4.64733633,2504.0,2503.9,0.27966]
[1730546113806,7.78880931,2504.0,2503.9,0.27966]
[1730546114006,4.64733633,2504.0,2503.9,0.27966]
[1730546115104,1.43953633,2504.0,2503.9,0.27966]
[1730546118111,1.71918633,2504.0,2503.9,0.27966]
[1730546119903,5.38656607,2504.0,2503.9,0.27966]
[1730546121413,1.71918633,2504.0,2503.9,0.27966]
[1730546121709,5.38656607,2504.0,2503.9,0.27966]
[1730546122210,5.10691607,2504.0,2503.9,0.27966]
[1730546123109,3.66737974,2504.0,2503.9,0.27966]
[1730546123312,8.47110974,2504.1,2504.0,0.27965]
[1730546124311,5.26330974,2504.1,2504.0,0.27965]
[1730546124503,8.19147974,2504.1,2504.0,0.27965]
[1730546124909,8.47110974,2504.1,2504.0,0.27965]
[1730546127410,4.80373,2504.1,2504.0,0.27965]
[1730546128913,8.46984348,2504.1,2504.0,0.27965]
[1730546129212,4.80373,2504.1,2504.0,0.27965]
[1730546129922,4.5241,2504.1,2503.7,0.6992]
[1730546130218,3.94601158,2504.0,2503.9,0.27965]
[1730546130912,3.66636158,2504.0,2503.9,0.27965]
[1730546131221,3.94601158,2504.0,2503.9,0.27965]
[1730546131513,3.66636158,2504.0,2503.9,0.27965]
[1730546133620,1.3163,2504.1,2503.9,0.27965]
[1730546133621,4.98266158,2504.1,2504.0,0.27965]
[1730546136522,4.98266158,2504.1,2504.0,0.88284856]
[1730546137524,1.3163,2504.1,2504.0,0.88284856]
[1730546140426,1.3163,2504.1,2504.0,0.27965]
[1730546140625,1.3163,2504.1,2504.0,0.8833687]
[1730546140626,5.51123437,2504.1,2504.0,0.8833687]
[1730546142529,5.79086437,2504.1,2504.0,0.8833687]
[1730546143123,5.79086437,2504.1,2504.0,0.6037187]
[1730546143329,5.79086437,2504.1,2504.0,0.8833687]
[1730546143529,1.59593,2504.1,2504.0,0.8833687]
[1730546144227,5.79146027,2504.1,2504.0,0.88339215]
[1730546144731,1.59593,2504.1,2504.0,0.88339215]
[1730546146638,1.59593,2504.1,2504.0,0.60374215]
[1730546147026,1.59593,2504.1,2504.0,0.88339215]
[1730546147229,5.79140716,2504.1,2504.0,0.88339215]
[1730546148326,1.59593,2504.1,2504.0,0.88339215]
[1730546150932,1.3163,2504.1,2504.0,0.88339215]
[1730546151240,5.79152446,2504.1,2504.0,0.88339215]
[1730546151632,1.59593,2504.1,2504.0,0.88339215]
[1730546151932,1.59593,2504.1,2504.0,0.88326757]
[1730546152729,1.3163,2504.1,2504.0,0.88326757]
[1730546153128,5.79159187,2504.1,2504.0,0.88326757]
[1730546153328,1.59593,2504.1,2504.0,0.88326757]
[1730546155431,1.59593,2504.1,2504.0,0.27965]
[1730546155637,1.59593,2504.1,2504.0,0.60363353]
[1730546157729,5.7917459,2504.1,2504.0,0.60363353]
[1730546157931,1.59593,2504.1,2504.0,0.60363353]
[1730546159343,1.59593,2504.1,2504.0,0.88328353]
[1730546160438,1.59593,2504.1,2504.0,0.60363353]
[1730546160632,1.59593,2504.1,2504.0,0.88328353]
[1730546161341,1.59593,2504.1,2504.0,0.60363353]
[1730546161537,6.31523117,2504.1,2503.9,0.27965]
[1730546161743,4.19581565,2504.0,2503.9,0.27965]
[1730546161939,4.19581565,2504.0,2503.9,0.88328791]
[1730546162140,4.19581565,2504.0,2503.9,0.27965]
[1730546162441,4.19581565,2504.0,2503.9,0.88328899]
[1730546162734,4.47546565,2504.0,2503.9,0.88328899]
[1730546162928,4.19581565,2504.0,2503.9,0.88328899]
[1730546163334,4.47546565,2504.0,2503.9,0.88328899]
[1730546164337,4.47546565,2504.0,2503.9,0.27965]
[1730546164542,4.19581565,2504.0,2503.9,0.88330659]
[1730546164737,4.47546565,2504.0,2503.9,0.88330659]
[1730546165332,4.47546565,2504.0,2503.9,0.88331253]
[1730546166242,4.19581565,2504.0,2503.9,0.88331253]
[1730546166738,4.47546565,2504.0,2503.9,0.88331253]
[1730546167130,4.19581565,2504.0,2503.9,1.84907024]
[1730546167334,4.19581565,2504.0,2503.9,0.88331253]
[1730546167532,4.47546565,2504.0,2503.9,0.88331253]
[1730546167945,4.19581565,2504.0,2503.9,0.88331253]
[1730546168146,4.19581565,2504.0,2503.9,1.84905085]
[1730546168344,4.19581565,2504.0,2503.9,0.88331253]
[1730546168545,4.47546565,2504.0,2503.9,0.88331253]
[1730546168947,4.47546565,2504.0,2503.9,0.27965]
[1730546169142,4.47546565,2504.0,2503.9,0.88329391]
[1730546169440,4.19581565,2504.0,2503.9,0.88329391]
[1730546170239,4.19581565,2504.0,2503.9,1.84911368]
[1730546170643,4.63661565,2504.1,2504.0,0.27965]
[1730546170842,4.63661565,2504.1,2504.0,0.88329391]
[1730546171238,4.91624565,2504.1,2504.0,0.88329391]
[1730546172547,4.91624565,2504.1,2504.0,0.27965]
[1730546172743,4.91624565,2504.1,2504.0,0.88342906]
[1730546173754,4.91624565,2504.1,2504.0,1.84944068]
[1730546173944,4.91624565,2504.1,2504.0,0.88342906]
[1730546174343,4.63661565,2504.1,2504.0,0.88342906]
[1730546174552,0.4408,2504.1,2504.0,1.84912632]
[1730546174752,0.72043,2504.1,2504.0,0.88342906]
[1730546174953,4.91624565,2504.1,2504.0,0.88342906]
[1730546175153,0.72043,2504.1,2504.0,0.88342906]
[1730546175459,4.63661565,2504.1,2504.0,0.88342906]
[1730546175660,4.91624565,2504.1,2504.0,0.88342906]
[1730546176355,4.63661565,2504.1,2504.0,0.27965]
[1730546176563,4.63661565,2504.1,2504.0,0.88301736]
[1730546176957,0.4408,2504.1,2504.0,0.88301736]
[1730546177259,4.63661565,2504.1,2504.0,0.88301736]
[1730546177758,4.91624565,2504.1,2504.0,0.88301736]
[1730546178358,4.63661565,2504.1,2504.0,0.88301736]
[1730546178860,4.19581565,2504.1,2504.0,2.32255369]
[1730546179050,4.19581565,2504.1,2504.0,4.4941345]
[1730546179051,3.14587797,2504.1,2504.0,4.4941345]
[1730546179251,3.14587797,2504.2,2504.1,0.27963]
[1730546179456,3.14587797,2504.2,2504.1,3.7328435]
[1730546179662,4.44307797,2504.3,2504.1,4.6591707]
[1730546179863,1.2972,2504.3,2504.2,1.84819717]
[1730546180062,1.2972,2504.3,2504.2,1.84761945]
[1730546180451,4.96749413,2504.3,2504.2,1.84761945]
[1730546181374,4.96749413,2504.3,2504.2,0.88269671]
[1730546181672,1.2972,2504.3,2504.2,0.88269671]
[1730546183272,1.2972,2504.3,2504.2,0.27962]
[1730546183475,4.43936116,2504.3,2504.2,0.27962]
[1730546184066,1.2972,2504.3,2504.2,0.27962]
[1730546185479,4.43869374,2504.3,2504.2,0.27962]
[1730546186978,4.43869374,2504.3,2504.2,0.8823186]
[1730546187185,4.43869374,2504.3,2504.2,0.27962]
[1730546188879,1.2972,2504.3,2504.2,0.27962]
[1730546189379,1.2972,2504.3,2504.2,0.88215413]
[1730546190975,1.2972,2504.3,2504.2,0.27962]
[1730546191278,1.2972,2504.3,2504.2,0.88205135]
[1730546195379,1.2972,2504.3,2504.2,0.88190299]
[1730546197784,1.2972,2504.3,2504.2,0.27962]
[1730546200085,2.61528325,2504.6,2504.5,0.27959]
[1730546200285,4.71930117,2505.7,2504.8,0.27956]
[1730546200286,2.61528325,2505.2,2504.8,0.27956]
[1730546200481,1.3162,2505.7,2504.8,0.27956]
[1730546200482,2.61528325,2505.4,2505.1,4.64733633]
[1730546200680,1.3162,2505.7,2505.1,4.64733633]
[1730546200681,2.61528325,2505.5,2505.4,0.27949]
[1730546201585,2.61528325,2505.6,2505.5,0.27948]
[1730546202590,5.37101958,2505.7,2505.6,0.27947]
[1730546202796,3.03519633,2505.7,2505.6,0.27947]
[1730546202985,6.74693633,2505.7,2505.3,1.43953633]
[1730546203186,2.6094619,2505.6,2505.5,0.27947]
[1730546203588,3.03519633,2505.7,2505.3,1.43953633]
[1730546203589,5.36519823,2505.7,2505.3,1.43953633]
[1730546203988,5.64465823,2505.7,2505.5,0.27947]
[1730546204386,9.63585823,2505.7,2505.5,0.27947]
[1730546205083,8.85245823,2505.7,2505.5,0.27947]
[1730546205280,12.84365823,2505.7,2505.5,0.27947]
[1730546205486,0.27947,2505.6,2505.5,0.27947]
[1730546205889,0.27947,2505.6,2505.0,4.72462]
[1730546205890,5.43073633,2505.6,2505.1,1.43953633]
[1730546206087,0.27948,2505.5,2505.3,0.27949]
[1730546207685,1.43953633,2505.6,2505.3,0.27949]
[1730546207686,0.27949,2505.4,2505.3,0.27949]
[1730546207993,0.27948,2505.5,2505.3,0.27949]
[1730546210195,0.27949,2505.4,2505.3,0.27949]
[1730546210396,0.27949,2505.4,2505.2,0.2795]
[1730546210597,0.8753,2505.3,2505.2,0.2795]
[1730546211893,1.3302,2505.3,2505.2,0.2795]
[1730546224900,4.04899823,2505.7,2505.1,1.43953633]
[1730546225099,0.8807,2505.6,2505.5,0.27948]
[1730546234421,3.4901619,2505.6,2505.5,0.27948]
[1730546234616,3.48765357,2505.6,2505.5,0.27948]
[1730546234815,0.8807,2505.6,2505.5,0.27948]
[1730546237116,1.16017,2505.6,2505.5,0.27948]
[1730546237538,0.8807,2505.6,2505.5,0.27948]
[1730546238433,1.16017,2505.6,2505.5,0.27948]
[1730546240735,4.28563511,2505.6,2505.5,0.27948]
[1730546241442,1.16017,2505.6,2505.5,0.27948]
[1730546243742,4.28563511,2505.6,2505.5,0.27948]
[1730546244631,1.16017,2505.6,2505.5,0.27948]
[1730546245431,1.16017,2505.6,2505.5,0.88171471]
[1730546247142,0.2795,2505.4,2505.3,0.27949]
[1730546248734,0.27952,2505.2,2505.1,0.27952]
[1730546248950,3.66827098,2505.2,2504.9,1.43953633]
[1730546249150,4.29373189,2505.1,2505.0,0.27953]
[1730546249745,4.81770098,2505.1,2505.0,0.27953]
[1730546251633,1.14943,2505.1,2505.0,0.27953]
[1730546252136,4.81770098,2505.1,2505.0,0.27953]
[1730546252336,0.8699,2505.1,2505.0,1.71906633]
[1730546252540,4.53817098,2505.1,2505.0,1.71906633]
[1730546254440,0.8699,2505.1,2505.0,1.71906633]
[1730546254644,4.01143544,2505.1,2505.0,1.71906633]
[1730546254850,0.8699,2505.1,2505.0,1.71906633]
[1730546256348,3.14131331,2505.1,2505.0,1.71906633]
[1730546256543,3.14131331,2505.2,2505.0,1.43953633]
[1730546256744,3.14131331,2505.2,2505.1,1.71905633]
[1730546256937,3.58061331,2505.3,2505.1,1.43953633]
[1730546257138,0.4393,2505.3,2505.2,0.27951]
[1730546257544,4.11417098,2505.4,2505.1,1.43953633]
[1730546257745,3.58672391,2505.4,2505.3,1.71903633]
[1730546258452,3.5867635,2505.4,2505.3,1.71903633]
[1730546263349,3.8662535,2505.4,2505.3,1.71903633]
[1730546263648,3.8662535,2505.4,2505.3,0.2795]
[1730546265747,3.5867635,2505.4,2505.3,1.71903633]